bitfinex-derivatives/quotes_BTCF0:USTF0_20251119
["timestamp","ask_amount","ask_price","bid_price","bid_amount"]
[1763574400845,0.36199823,89185.0,89180.0,0.1122249]
[1763574401033,0.36199823,89185.0,89184.0,0.00173247]
[1763574401233,0.38523823,89185.0,89184.0,0.00173247]
[1763574401548,0.36299823,89185.0,89184.0,0.04475247]
[1763574401843,0.00219823,89185.0,89184.0,0.04475247]
[1763574402745,0.36096823,89193.0,89192.0,0.1552311]
[1763574402936,0.00016823,89193.0,89192.0,0.51776357]
[1763574403136,0.3608,89211.0,89200.0,0.04302]
[1763574403347,0.00119823,89210.0,89201.0,0.21430594]
[1763574403537,0.1121943,89206.0,89201.0,0.00173247]
[1763574403732,0.00119823,89202.0,89201.0,0.00173247]
[1763574404446,0.38423823,89202.0,89201.0,0.00173247]
[1763574405244,0.40678823,89202.0,89201.0,0.00173247]
[1763574405946,0.36299823,89202.0,89201.0,0.00173247]
[1763574406145,0.36299823,89202.0,89201.0,0.02279247]
[1763574406445,0.36299823,89202.0,89201.0,0.04475247]
[1763574407944,0.00219823,89202.0,89201.0,0.04475247]
[1763574408145,0.001,89202.0,89201.0,0.04475247]
[1763574408345,0.00016823,89210.0,89209.0,0.04302]
[1763574408540,0.00016823,89210.0,89209.0,0.51774217]
[1763574408746,0.3608,89221.0,89218.0,0.1121779]
[1763574408944,0.11337413,89220.0,89219.0,0.04302]
[1763574409133,0.15816413,89220.0,89219.0,0.00173247]
[1763574409642,0.1121884,89210.0,89209.0,0.3608]
[1763574409937,0.51897663,89210.0,89209.0,0.00173247]
[1763574411247,0.1569885,89202.0,89201.0,0.00016813]
[1763574411435,0.51898673,89202.0,89201.0,0.00016813]
[1763574411842,0.51898673,89202.0,89201.0,0.0019006]
[1763574412345,0.36199823,89202.0,89201.0,0.0449206]
[1763574412537,0.00119823,89202.0,89201.0,0.0449206]
[1763574413140,0.00219823,89202.0,89201.0,0.1571204]
[1763574413647,0.001,89202.0,89201.0,0.1571204]
[1763574414244,0.00219823,89202.0,89201.0,0.0449206]
[1763574414843,0.15918673,89202.0,89201.0,0.0019006]
[1763574415044,0.00219823,89202.0,89201.0,0.0449206]
[1763574415837,0.00119823,89202.0,89201.0,0.0449206]
[1763574418240,0.11339673,89202.0,89201.0,0.0229606]
[1763574418441,0.51898673,89202.0,89201.0,0.00016813]
[1763574418646,0.10956,89209.0,89201.0,0.3627006]
[1763574418841,0.1121985,89202.0,89201.0,0.3627006]
[1763574419045,0.11393097,89202.0,89201.0,0.34053773]
[1763574420548,0.11393097,89202.0,89201.0,0.38355773]
[1763574420549,0.00173247,89202.0,89201.0,0.38355773]
[1763574420747,0.58630347,89240.0,89204.0,0.1121957]
[1763574420948,0.00173247,89227.0,89226.0,0.04302]
[1763574421155,0.00028013,89246.0,89245.0,0.04302]
[1763574421349,0.0020126,89246.0,89245.0,0.00119823]
[1763574421544,0.0020126,89246.0,89214.0,0.10844]
[1763574421545,0.4020126,89246.0,89214.0,0.10844]
[1763574421751,0.06,89222.0,89221.0,0.00119823]
[1763574422049,0.06173247,89222.0,89221.0,0.00119823]
[1763574422347,0.00173247,89222.0,89221.0,0.00119823]
[1763574422551,0.00173247,89222.0,89221.0,0.36199823]
[1763574423056,0.06173247,89222.0,89221.0,0.36199823]
[1763574423758,0.18175887,89222.0,89221.0,0.36199823]
[1763574423946,0.29131887,89222.0,89221.0,0.36199823]
[1763574424144,0.17229247,89222.0,89221.0,0.36199823]
[1763574424845,0.17229247,89222.0,89213.0,0.00016813]
[1763574424846,0.06,89214.0,89213.0,0.36096813]
[1763574425047,0.06,89197.0,89196.0,0.3608]
[1763574425256,0.03920247,89197.0,89196.0,0.00119823]
[1763574425554,0.00173247,89197.0,89196.0,0.42237823]
[1763574426453,0.00016813,89205.0,89204.0,0.172576]
[1763574426652,0.00016813,89205.0,89204.0,0.53457423]
[1763574426852,0.00173247,89221.0,89218.0,0.1121784]
[1763574427059,0.00173247,89221.0,89220.0,0.00119823]
[1763574427759,0.18533248,89221.0,89220.0,0.00119823]
[1763574427948,0.06,89205.0,89204.0,0.3608]
[1763574428160,0.06173247,89205.0,89204.0,0.36199823]
[1763574428561,0.00173247,89205.0,89204.0,0.42237823]
[1763574428957,0.00173247,89205.0,89204.0,0.53457423]
[1763574429560,0.3618,89221.0,89205.0,0.1121945]
[1763574429854,0.06,89207.0,89206.0,0.00119823]
[1763574430059,0.06,89197.0,89196.0,0.00016813]
[1763574430254,0.06219803,89197.0,89196.0,0.00016813]
[1763574431148,0.00219803,89197.0,89196.0,0.06054813]
[1763574431348,0.3608,89232.0,89196.0,0.06054813]
[1763574431349,0.3608,89232.0,89212.0,0.112185]
[1763574431663,0.06,89217.0,89216.0,0.3608]
[1763574431960,0.03966803,89217.0,89216.0,0.3608]
[1763574432153,0.00219803,89217.0,89216.0,0.3608]
[1763574433151,0.00016813,89225.0,89217.0,0.1121796]
[1763574433353,0.00219803,89224.0,89217.0,0.1121796]
[1763574433552,0.00219803,89224.0,89216.0,0.3745]
[1763574433955,0.06,89217.0,89216.0,0.3608]
[1763574434157,0.06319803,89217.0,89216.0,0.3608]
[1763574434556,0.06319803,89217.0,89206.0,0.06043877]
[1763574434760,0.03747,89214.0,89205.0,0.3608]
[1763574434964,0.00219803,89206.0,89205.0,0.39808]
[1763574435869,0.06219803,89206.0,89205.0,0.3608]
[1763574436972,0.06219803,89206.0,89199.0,0.3608]
[1763574438071,0.04066803,89206.0,89201.0,0.3608]
[1763574438557,0.00319803,89206.0,89205.0,0.03728]
[1763574438749,0.00319803,89206.0,89205.0,0.06038]
[1763574439961,0.00319803,89206.0,89201.0,0.3608]
[1763574440864,0.10968813,89225.0,89201.0,0.3608]
[1763574440865,0.00016813,89225.0,89222.0,0.03728]
[1763574441062,0.06,89218.0,89217.0,0.3608]
[1763574441264,0.06219803,89218.0,89217.0,0.3608]
[1763574441460,0.06,89216.0,89215.0,0.00016813]
[1763574441666,0.0545979,89216.0,89215.0,0.00016813]
[1763574441861,0.17973731,89216.0,89215.0,0.00016813]
[1763574442052,0.20440193,89216.0,89215.0,0.00016813]
[1763574442362,0.17973731,89216.0,89215.0,0.00016813]
[1763574442571,0.0320679,89216.0,89215.0,0.00016813]
[1763574443173,0.00219803,89216.0,89215.0,0.06054813]
[1763574443377,0.00319803,89216.0,89215.0,0.06054813]
[1763574443779,0.03319803,89216.0,89215.0,0.00016813]
[1763574443971,0.03219803,89216.0,89215.0,0.00016813]
[1763574444167,0.03219803,89216.0,89215.0,0.06054813]
[1763574444168,0.00319803,89216.0,89215.0,0.06054813]
[1763574444372,0.00319803,89216.0,89215.0,0.17273023]
[1763574444775,0.00016813,89225.0,89219.0,0.1121763]
[1763574445075,0.00073267,89224.0,89223.0,0.03205]
[1763574445279,0.00073267,89224.0,89223.0,0.03424803]
[1763574445982,0.00073267,89224.0,89215.0,0.00016813]
[1763574445983,0.04402,89216.0,89215.0,0.00016813]
[1763574446280,0.00073267,89216.0,89215.0,0.06667616]
[1763574446984,0.02274267,89216.0,89215.0,0.00236616]
[1763574447184,0.02374267,89216.0,89215.0,0.00236616]
[1763574447376,0.40655267,89216.0,89215.0,0.00236616]
[1763574447576,0.04575267,89216.0,89215.0,0.00236616]
[1763574449180,0.04575267,89216.0,89215.0,0.00016813]
[1763574449375,0.0704659,89216.0,89199.0,0.0137]
[1763574449576,0.04402,89200.0,89192.0,0.3608]
[1763574449787,0.00073267,89193.0,89192.0,0.42730803]
[1763574449984,0.10952,89212.0,89208.0,0.06431]
[1763574450176,0.001,89216.0,89211.0,0.06431]
[1763574450375,0.00173267,89216.0,89215.0,0.06431]
[1763574450581,0.02374267,89216.0,89215.0,0.03424803]
[1763574450783,0.04575267,89216.0,89215.0,0.00219803]
[1763574450977,0.00173267,89216.0,89215.0,0.06650803]
[1763574451182,0.00173267,89216.0,89215.0,0.42730803]
[1763574451592,0.00073267,89216.0,89215.0,0.42730803]
[1763574451785,0.00073267,89216.0,89215.0,0.06650803]
[1763574451994,0.04243267,89216.0,89215.0,0.00219803]
[1763574452492,0.04343267,89216.0,89215.0,0.00219803]
[1763574453194,0.04243267,89216.0,89215.0,0.00219803]
[1763574453488,0.04343267,89216.0,89215.0,0.00219803]
[1763574453984,0.00173267,89216.0,89215.0,0.06930803]
[1763574454890,0.00173267,89216.0,89209.0,0.3608]
[1763574454891,0.03938,89210.0,89209.0,0.3608]
[1763574455194,0.04011267,89210.0,89209.0,0.36299803]
[1763574455886,0.00073267,89210.0,89209.0,0.43010803]
[1763574456090,0.00173267,89210.0,89209.0,0.54229773]
[1763574456893,0.00173267,89210.0,89209.0,0.6027365]
[1763574457087,0.00173267,89210.0,89209.0,0.54229773]
[1763574457391,0.04154813,89222.0,89211.0,0.1121869]
[1763574457588,0.04211267,89221.0,89212.0,0.00219803]
[1763574457791,0.00073267,89221.0,89220.0,0.06711]
[1763574457994,0.42051667,89247.0,89220.0,0.06711]
[1763574457995,0.04009124,89246.0,89228.0,0.1121657]
[1763574458289,0.04009124,89246.0,89222.0,0.01944]
[1763574458290,0.00073267,89238.0,89229.0,0.00219803]
[1763574458482,0.00073267,89238.0,89236.0,0.01944]
[1763574458686,0.04211267,89238.0,89237.0,0.00219803]
[1763574459085,0.16449963,89238.0,89237.0,0.00219803]
[1763574459388,0.02069,89230.0,89229.0,0.00016813]
[1763574459585,0.04211267,89230.0,89229.0,0.00236616]
[1763574460691,0.00073267,89230.0,89229.0,0.06947616]
[1763574461086,0.001,89238.0,89237.0,0.06711]
[1763574461285,0.00073267,89245.0,89244.0,0.06711]
[1763574461485,0.00073267,89245.0,89244.0,0.06930803]
[1763574461694,0.04411267,89245.0,89244.0,0.00219803]
[1763574462189,0.04411267,89245.0,89237.0,0.3608]
[1763574462392,0.04338,89238.0,89237.0,0.36299803]
[1763574462693,0.00073267,89238.0,89237.0,0.43010803]
[1763574463393,0.04411267,89238.0,89237.0,0.36299803]
[1763574463596,0.1724193,89238.0,89237.0,0.36299803]
[1763574465890,0.1290393,89238.0,89237.0,0.43010803]
[1763574466197,0.00073267,89238.0,89237.0,0.43010803]
[1763574466493,0.00073267,89238.0,89237.0,0.36299803]
[1763574466494,0.04411267,89238.0,89237.0,0.36299803]
[1763574466696,0.02242267,89238.0,89237.0,0.36299803]
[1763574467001,0.00073267,89238.0,89237.0,0.43010803]
[1763574467388,0.00044826,89246.0,89245.0,0.06711]
[1763574467700,0.3608,89271.0,89245.0,0.06711]
[1763574467701,0.10948,89272.0,89250.0,0.01944]
[1763574467999,0.10948,89272.0,89251.0,0.00219803]
[1763574468000,0.00073267,89265.0,89251.0,0.00219803]
[1763574468391,0.00073267,89265.0,89264.0,0.06711]
[1763574468592,0.00073267,89265.0,89264.0,0.06930803]
[1763574469104,0.00073267,89265.0,89264.0,0.00219803]
[1763574469105,0.04411267,89265.0,89264.0,0.00219803]
[1763574470391,0.04338,89258.0,89257.0,0.3608]
[1763574470597,0.02242267,89258.0,89257.0,0.36299803]
[1763574471098,0.00010916,89273.0,89257.0,0.36299803]
[1763574471099,0.00010916,89273.0,89272.0,0.06711]
[1763574471395,0.00084183,89273.0,89272.0,0.06930803]
[1763574474198,0.00010916,89273.0,89272.0,0.06930803]
[1763574474504,0.12299142,89273.0,89272.0,0.06930803]
[1763574474700,0.47028,89301.0,89285.0,0.06711]
[1763574474904,0.47028,89301.0,89285.0,0.00219803]
[1763574474905,0.06798267,89286.0,89285.0,0.00219803]
[1763574476296,0.06697,89278.0,89277.0,0.00016804]
[1763574476606,0.06770267,89278.0,89277.0,0.00236607]
[1763574476995,0.03382267,89278.0,89277.0,0.03456607]
[1763574477197,0.00073267,89278.0,89277.0,0.06947607]
[1763574477797,0.10944,89287.0,89282.0,0.0322]
[1763574477998,0.10944,89287.0,89283.0,0.00219803]
[1763574478299,0.06697,89284.0,89283.0,0.00219803]
[1763574478694,0.13869117,89284.0,89283.0,0.00219803]
[1763574480100,0.15873117,89284.0,89283.0,0.00219803]
[1763574480302,0.06697,89268.0,89267.0,0.3608]
[1763574480501,0.04304,89251.0,89250.0,0.3608]
[1763574480702,0.49488576,89268.0,89251.0,0.00219803]
[1763574480703,0.23477501,89268.0,89251.0,0.00219803]
[1763574480894,0.11256929,89271.0,89270.0,0.06711]
[1763574481198,0.04304,89251.0,89233.0,0.1121587]
[1763574481398,0.04304,89251.0,89245.0,0.00219803]
[1763574481704,0.00016804,89256.0,89255.0,0.07854]
[1763574481906,0.00016804,89256.0,89255.0,0.44153803]
[1763574482408,0.3608,89273.0,89265.0,0.07854]
[1763574482605,0.3608,89284.0,89272.0,0.00219803]
[1763574482606,0.10944,89278.0,89272.0,0.00219803]
[1763574482999,0.23683253,89283.0,89282.0,0.03153]
[1763574483194,0.07673,89266.0,89265.0,0.3608]
[1763574483405,0.07673,89266.0,89265.0,0.36299803]
[1763574483704,0.09379432,89266.0,89265.0,0.36299803]
[1763574483895,0.07673,89258.0,89257.0,0.00016804]
[1763574484095,0.01706432,89266.0,89265.0,0.07854]
[1763574484312,0.3608,89276.0,89275.0,0.07854]
[1763574484509,0.001,89278.0,89277.0,0.07854]
[1763574484806,0.10944,89290.0,89277.0,0.08073803]
[1763574485006,0.10944,89290.0,89277.0,0.00219803]
[1763574485007,0.19642237,89278.0,89277.0,0.00219803]
[1763574485198,0.07673,89266.0,89265.0,0.3608]
[1763574485401,0.18617,89266.0,89251.0,0.3608]
[1763574485607,0.3608,89264.0,89252.0,0.08073803]
[1763574486001,0.07613158,89263.0,89252.0,0.08073803]
[1763574486309,0.07673,89253.0,89252.0,0.00219803]
[1763574486504,0.07673,89245.0,89236.0,0.0007]
[1763574486701,0.18617,89245.0,89236.0,0.0007]
[1763574486897,0.57599541,89245.0,89236.0,0.0007]
[1763574487311,0.07673,89237.0,89236.0,0.0007]
[1763574487610,0.55961925,89237.0,89236.0,0.0007]
[1763574487807,0.55961925,89237.0,89236.0,0.00289803]
[1763574488205,0.12219003,89237.0,89236.0,0.08143803]
[1763574488415,0.12219003,89237.0,89236.0,0.44223803]
[1763574488416,0.00010078,89237.0,89236.0,0.44223803]
[1763574489606,0.04563078,89237.0,89236.0,0.41070803]
[1763574490006,0.00110078,89237.0,89236.0,0.44223803]
[1763574490206,0.04463078,89237.0,89236.0,0.41070803]
[1763574490514,0.04463078,89237.0,89236.0,0.00289803]
[1763574490515,0.1935076,89237.0,89236.0,0.00289803]
[1763574490707,0.18627078,89237.0,89236.0,0.00289803]
[1763574490901,0.18627078,89237.0,89236.0,0.0007]
[1763574491106,0.07673,89229.0,89228.0,0.36096804]
[1763574491306,0.07673,89229.0,89228.0,0.00236607]
[1763574491508,0.19796056,89229.0,89228.0,0.00016804]
[1763574491818,0.19796056,89229.0,89203.0,0.10944]
[1763574491819,0.19796056,89229.0,89201.0,0.3608]
[1763574492113,0.07673,89205.0,89181.0,0.06048554]
[1763574492316,0.07673,89203.0,89202.0,0.00219803]
[1763574492708,0.10954078,89204.0,89203.0,0.07854]
[1763574493008,0.00010078,89204.0,89203.0,0.08073803]
[1763574494607,0.00016814,89211.0,89210.0,0.07854]
[1763574494808,0.00016814,89211.0,89210.0,0.44153803]
[1763574495012,0.3608,89234.0,89220.0,0.0189]
[1763574495204,0.43753,89234.0,89233.0,0.00219803]
[1763574495400,0.54697,89234.0,89233.0,0.00219803]
[1763574495709,0.65965163,89234.0,89233.0,0.00219803]
[1763574496416,0.47348163,89234.0,89233.0,0.08073803]
[1763574496614,0.07673,89228.0,89227.0,0.3608]
[1763574496916,0.07673,89228.0,89227.0,0.00219803]
[1763574497108,0.07673,89226.0,89225.0,0.00016814]
[1763574497302,0.43753,89226.0,89225.0,0.00016814]
[1763574497502,0.44768099,89226.0,89225.0,0.00016814]
[1763574497812,0.04453,89211.0,89210.0,0.3608]
[1763574498205,0.10944,89214.0,89210.0,0.41000803]
[1763574498607,0.12569622,89213.0,89210.0,0.36299803]
[1763574499117,0.10944,89213.0,89212.0,0.07854]
[1763574499313,0.10944,89213.0,89212.0,0.08073803]
[1763574499516,0.18617,89213.0,89212.0,0.00219803]
[1763574499809,0.31613633,89213.0,89212.0,0.00219803]
[1763574500209,0.28393633,89213.0,89212.0,0.00219803]
[1763574501004,0.3608,89218.0,89212.0,0.08073803]
[1763574501206,0.3608,89218.0,89217.0,0.07854]
[1763574501407,0.11676669,89219.0,89218.0,0.07854]
[1763574501606,0.00016814,89220.0,89219.0,0.07854]
[1763574501814,0.00016814,89220.0,89219.0,0.08073803]
[1763574502517,0.00016814,89220.0,89219.0,0.00219803]
[1763574502518,0.20049081,89220.0,89219.0,0.00219803]
[1763574502717,0.07673,89210.0,89209.0,0.3608]
[1763574502912,0.07673,89210.0,89209.0,0.36299803]
[1763574503117,0.19895932,89210.0,89209.0,0.36299803]
[1763574504015,0.3608,89219.0,89209.0,0.44153803]
[1763574504213,0.00116814,89220.0,89218.0,0.04701]
[1763574504409,0.00116814,89220.0,89219.0,0.00219803]
[1763574504610,0.18733814,89220.0,89219.0,0.00219803]
[1763574504808,0.0869,89210.0,89209.0,0.3608]
[1763574505008,0.23321547,89220.0,89209.0,0.45150803]
[1763574505313,0.00016814,89220.0,89219.0,0.04426]
[1763574505514,0.10960814,89220.0,89219.0,0.04645803]
[1763574505715,0.12853716,89220.0,89219.0,0.45150803]
[1763574505920,0.00016814,89220.0,89219.0,0.45150803]
[1763574506112,0.10944,89236.0,89221.0,0.1121739]
[1763574506309,0.10944,89236.0,89222.0,0.00219803]
[1763574506525,0.04381,89223.0,89222.0,0.00219803]
[1763574506713,0.08618,89223.0,89222.0,0.00219803]
[1763574506908,0.00602925,89223.0,89222.0,0.00219803]
[1763574507120,0.00016814,89231.0,89222.0,0.09070803]
[1763574507319,0.10944,89230.0,89222.0,0.09070803]
[1763574507623,0.32385757,89230.0,89222.0,0.00219803]
[1763574508518,0.28148757,89230.0,89222.0,0.00219803]
[1763574508829,0.001,89223.0,89222.0,0.09070803]
[1763574509708,0.04481,89223.0,89222.0,0.00219803]
[1763574510022,0.20901706,89223.0,89214.0,0.00016814]
[1763574510320,0.08618,89216.0,89215.0,0.00219803]
[1763574510617,0.08618,89215.0,89214.0,0.00016814]
[1763574510823,0.19562,89215.0,89214.0,0.00016814]
[1763574511024,0.32251689,89215.0,89214.0,0.00016814]
[1763574511912,0.28014689,89215.0,89214.0,0.00236617]
[1763574512117,0.32299689,89215.0,89214.0,0.00236617]
[1763574512916,0.32299689,89215.0,89214.0,0.00016814]
[1763574513117,0.28014689,89215.0,89214.0,0.00236617]
[1763574513313,0.10944,89215.0,89214.0,0.08592617]
[1763574513920,0.3608,89228.0,89214.0,0.00236617]
[1763574514232,0.10960814,89231.0,89230.0,0.08356]
[1763574514436,0.10960814,89231.0,89230.0,0.08575803]
[1763574514727,0.22155667,89231.0,89230.0,0.08575803]
[1763574516016,0.10960814,89231.0,89230.0,0.08575803]
[1763574516222,0.10960814,89231.0,89230.0,0.00219803]
[1763574516223,0.19222814,89231.0,89230.0,0.00219803]
[1763574516416,0.31832367,89231.0,89230.0,0.00219803]
[1763574517225,0.11060814,89231.0,89230.0,0.08575803]
[1763574517628,0.11060814,89231.0,89230.0,0.04222803]
[1763574517831,0.15037814,89231.0,89230.0,0.00219803]
[1763574518025,0.19322814,89231.0,89221.0,0.3608]
[1763574518235,0.00116814,89231.0,89230.0,0.08575803]
[1763574518531,0.11060814,89231.0,89230.0,0.08575803]
[1763574518731,0.19322814,89231.0,89230.0,0.00219803]
[1763574518922,0.30938293,89231.0,89230.0,0.00219803]
[1763574519127,0.31038293,89231.0,89230.0,0.00219803]
[1763574519320,0.08262,89222.0,89214.0,0.00016814]
[1763574519632,0.03977,89222.0,89221.0,0.04003]
[1763574519820,0.03977,89222.0,89221.0,0.00219803]
[1763574520021,0.08262,89222.0,89221.0,0.00219803]
[1763574521031,0.08762,89222.0,89221.0,0.00219803]
[1763574521632,0.08262,89215.0,89214.0,0.00016814]
[1763574521819,0.08262,89215.0,89214.0,0.00236617]
[1763574522019,0.20401394,89215.0,89214.0,0.00236617]
[1763574522221,0.006,89222.0,89221.0,0.04003]
[1763574522525,0.22265013,89222.0,89221.0,0.00219803]
[1763574522833,0.19706,89222.0,89221.0,0.00219803]
[1763574523038,0.22165299,89222.0,89221.0,0.00219803]
[1763574523636,0.11221299,89222.0,89221.0,0.00219803]
[1763574523837,0.22165299,89222.0,89221.0,0.00219803]
[1763574524030,0.21665299,89222.0,89221.0,0.00219803]
[1763574524337,0.21765299,89222.0,89221.0,0.00219803]
[1763574524534,0.08262,89215.0,89214.0,0.00016814]
[1763574524837,0.20616052,89215.0,89214.0,0.00016814]
[1763574525024,0.2307589,89215.0,89214.0,0.00016814]
[1763574525833,0.2347589,89215.0,89214.0,0.00236617]
[1763574526531,0.11121838,89215.0,89214.0,0.04239617]
[1763574526834,0.08262,89196.0,89190.0,0.01898989]
[1763574527027,0.08262,89196.0,89190.0,0.02118792]
[1763574527337,0.19206,89201.0,89190.0,0.02118792]
[1763574527632,0.3628,89215.0,89200.0,0.08356]
[1763574527824,0.3628,89215.0,89193.0,0.3608]
[1763574527825,0.45042,89215.0,89214.0,0.00219803]
[1763574528025,0.58244751,89215.0,89214.0,0.04222803]
[1763574528221,0.29490527,89215.0,89214.0,0.04222803]
[1763574528435,0.33775527,89215.0,89214.0,0.00219803]
[1763574528635,0.08262,89203.0,89202.0,0.3608]
[1763574528827,0.08262,89200.0,89199.0,0.00016814]
[1763574529130,0.08262,89200.0,89199.0,0.00236617]
[1763574530831,0.15021,89203.0,89202.0,0.04003]
[1763574531029,0.19306,89203.0,89202.0,0.00219803]
[1763574531229,0.19206,89203.0,89202.0,0.00219803]
[1763574532030,0.19306,89203.0,89202.0,0.00219803]
[1763574532232,0.19806,89203.0,89202.0,0.00219803]
[1763574532831,0.19806,89203.0,89202.0,0.08575803]
[1763574533036,0.006,89203.0,89202.0,0.08575803]
[1763574534036,0.04577,89203.0,89202.0,0.08575803]
[1763574534239,0.006,89203.0,89202.0,0.08575803]
[1763574535834,0.04577,89203.0,89202.0,0.08575803]
[1763574536140,0.006,89203.0,89202.0,0.08575803]
[1763574541142,0.00016814,89216.0,89215.0,0.08356]
[1763574541343,0.3608,89233.0,89232.0,0.10789]
[1763574541558,0.03981111,89250.0,89242.0,0.08356]
[1763574541849,0.03977,89243.0,89242.0,0.08356]
[1763574542144,0.06786845,89243.0,89242.0,0.08575803]
[1763574542445,0.3608,89245.0,89244.0,0.10322]
[1763574542643,0.03981111,89260.0,89250.0,0.07836]
[1763574542943,0.00016814,89253.0,89252.0,0.07836]
[1763574543247,0.3608,89267.0,89252.0,0.07836]
[1763574543248,0.3608,89275.0,89274.0,0.07836]
[1763574543445,0.07126,89259.0,89243.0,0.06048554]
[1763574543638,0.07126,89259.0,89258.0,0.00219803]
[1763574544039,0.09586172,89259.0,89258.0,0.00219803]
[1763574544352,0.07126,89251.0,89250.0,0.00016804]
[1763574544658,0.003,89259.0,89250.0,0.00236607]
[1763574544843,0.003,89259.0,89258.0,0.03725]
[1763574545148,0.003,89259.0,89258.0,0.03944803]
[1763574545644,0.003,89259.0,89258.0,0.08055803]
[1763574546240,0.3608,89260.0,89259.0,0.07836]
[1763574546449,0.3608,89260.0,89259.0,0.08055803]
[1763574546842,0.39643,89260.0,89259.0,0.08055803]
[1763574547244,0.07126,89251.0,89250.0,0.00016804]
[1763574547944,0.07426,89260.0,89259.0,0.03725]
[1763574548146,0.003,89260.0,89259.0,0.08055803]
[1763574548543,0.003,89260.0,89259.0,0.44135803]
[1763574548744,0.1124,89260.0,89259.0,0.44135803]
[1763574549649,0.003,89260.0,89259.0,0.44135803]
[1763574550047,0.00028,89286.0,89266.0,0.190478]
[1763574550048,0.10936,89282.0,89266.0,0.190478]
[1763574550351,0.10936,89282.0,89281.0,0.07836]
[1763574550547,0.10936,89282.0,89281.0,0.08055803]
[1763574550743,0.07294365,89282.0,89281.0,0.08055803]
[1763574550953,0.00028,89286.0,89285.0,0.07836]
[1763574551153,0.00028,89286.0,89285.0,0.08055803]
[1763574551448,0.3608,89307.0,89306.0,0.10322]
[1763574551644,0.10936,89316.0,89315.0,0.07836]
[1763574551844,0.10936,89316.0,89315.0,0.08055803]
[1763574552044,0.22411762,89316.0,89315.0,0.08055803]
[1763574552247,0.3608,89318.0,89315.0,0.08055803]
[1763574552452,0.3608,89318.0,89317.0,0.07836]
[1763574552651,0.3608,89318.0,89317.0,0.08055803]
[1763574553058,0.4324,89318.0,89317.0,0.00219803]
[1763574553548,0.0716,89305.0,89304.0,0.3608]
[1763574553755,0.0716,89305.0,89304.0,0.00219803]
[1763574553953,0.0716,89299.0,89283.0,0.3608]
[1763574554153,0.4324,89299.0,89283.0,0.3608]
[1763574554358,0.44000963,89299.0,89283.0,0.3608]
[1763574555454,0.0716,89285.0,89284.0,0.00219803]
[1763574556550,0.0726,89285.0,89284.0,0.00219803]
[1763574556757,0.0368,89285.0,89284.0,0.03944803]
[1763574557343,0.0726,89285.0,89284.0,0.00219803]
[1763574557550,0.0368,89285.0,89284.0,0.03944803]
[1763574557943,0.0726,89285.0,89284.0,0.00219803]
[1763574558258,0.0716,89277.0,89276.0,0.00016794]
[1763574558458,0.4324,89277.0,89276.0,0.00016794]
[1763574558758,0.4324,89277.0,89253.0,9.602e-05]
[1763574558759,0.50314686,89277.0,89253.0,9.602e-05]
[1763574558946,0.3608,89267.0,89254.0,0.00219803]
[1763574559143,0.47012,89267.0,89254.0,0.00219803]
[1763574559342,0.12065584,89266.0,89254.0,0.00219803]
[1763574559545,0.12065584,89266.0,89265.0,0.07836]
[1763574559746,0.001,89277.0,89276.0,0.07836]
[1763574559950,0.001,89277.0,89276.0,0.08055803]
[1763574560350,0.00016804,89285.0,89284.0,0.07836]
[1763574560552,0.00016804,89285.0,89284.0,0.08055803]
[1763574561750,0.00016804,89285.0,89284.0,0.03944803]
[1763574562152,0.36096804,89285.0,89284.0,0.03944803]
[1763574562356,0.5634194,89285.0,89284.0,0.00219803]
[1763574562858,0.5644194,89285.0,89284.0,0.00219803]
[1763574563163,0.6737394,89285.0,89284.0,0.00219803]
[1763574563348,0.4928194,89285.0,89284.0,0.08055803]
[1763574563753,0.47528804,89285.0,89284.0,0.08055803]
[1763574563962,0.00516804,89285.0,89284.0,0.08055803]
[1763574564458,0.00516804,89285.0,89284.0,0.19265343]
[1763574564854,0.00516804,89285.0,89284.0,0.08055803]
[1763574565356,0.10932,89299.0,89297.0,0.07043]
[1763574565561,0.10932,89299.0,89298.0,0.07262803]
[1763574566255,0.17412,89299.0,89298.0,0.00219803]
[1763574566456,0.66000501,89299.0,89298.0,0.00219803]
[1763574566656,0.66200501,89299.0,89298.0,0.00219803]
[1763574566856,0.007,89299.0,89298.0,0.07262803]
[1763574567058,0.11632,89299.0,89298.0,0.07262803]
[1763574567260,0.007,89299.0,89298.0,0.07262803]
[1763574567764,0.0648,89291.0,89290.0,0.00016804]
[1763574568156,0.0648,89291.0,89290.0,0.00236607]
[1763574568357,0.3668,89299.0,89290.0,0.03827607]
[1763574568759,0.23648027,89298.0,89290.0,0.03827607]
[1763574569261,0.12720027,89298.0,89297.0,0.07043]
[1763574569465,0.30128027,89298.0,89297.0,0.03810803]
[1763574569658,0.30128027,89298.0,89297.0,0.00219803]
[1763574569859,0.30128027,89298.0,89290.0,0.00016804]
[1763574569860,0.0648,89291.0,89290.0,0.00016804]
[1763574570267,0.4796688,89291.0,89290.0,0.00016804]
[1763574571471,0.4796688,89291.0,89271.0,0.43123]
[1763574571472,0.26669082,89290.0,89271.0,0.43123]
[1763574571664,0.0245361,89289.0,89272.0,0.00219803]
[1763574571865,0.14565292,89289.0,89272.0,0.00219803]
[1763574572168,0.06247,89273.0,89272.0,0.00219803]
[1763574572366,0.17175,89273.0,89272.0,0.00236607]
[1763574572564,0.24996732,89273.0,89272.0,0.00236607]
[1763574573169,0.24996732,89273.0,89272.0,0.00016804]
[1763574574064,0.24996732,89273.0,89272.0,0.00236607]
[1763574574264,0.24996732,89273.0,89272.0,0.03616607]
[1763574574265,0.14068732,89273.0,89272.0,0.03616607]
[1763574574479,0.24996732,89273.0,89272.0,0.03616607]
[1763574574672,0.24996732,89273.0,89272.0,0.00236607]
[1763574575763,0.24996732,89273.0,89272.0,0.00016804]
[1763574575976,0.24996732,89273.0,89272.0,0.00236607]
[1763574576361,0.27436871,89273.0,89272.0,0.00236607]
[1763574576559,0.06014,89256.0,89255.0,0.3608]
[1763574576859,0.65557258,89256.0,89255.0,0.00219803]
[1763574577261,0.06014,89254.0,89236.0,0.38051]
[1763574577462,0.06014,89247.0,89236.0,0.01971]
[1763574577772,0.06014,89239.0,89238.0,0.00016804]
[1763574577973,0.5546037,89239.0,89238.0,0.00016804]
[1763574578267,0.67359226,89239.0,89238.0,0.00016804]
[1763574578466,0.67368828,89239.0,89238.0,0.00016804]
[1763574578869,0.64930458,89239.0,89238.0,0.00016804]
[1763574579068,0.54002458,89239.0,89238.0,0.00016804]
[1763574579268,0.64930458,89239.0,89238.0,0.00016804]
[1763574579466,0.64930458,89239.0,89238.0,0.00236607]
[1763574580176,0.65030458,89239.0,89238.0,0.00236607]